{"text_format":"3","workbook":"xlsx","n_sheets":5,"sheets":["Read Me","Tender Cover Sheet","5.1.0 Preambles","5.1.1 PRICING SCHEDULE","5.1.2 CPA FORMULA"],"not_rendered":{"images":1,"external_links":1},"read":"whole","date_system":"1900"}

{"sheet":"Read Me","index":0,"n_rows":25,"n_cols":3,"rows_kept":25,"merged":[[7,1,7,2],[8,1,8,2],[9,1,9,2],[10,1,10,2],[15,8,15,15],[16,8,16,15],[21,1,21,2],[22,1,22,2]]}
["Enquiry No."]
["Package Name:",null,"General Facilities Maintenance contract for Limpopo Eskom Telecommunications Radio sites for a period of 3 years on an as and when required basis."]
["Tenderer's Name:",null,{"$f":"'Tender Cover Sheet'!C16","v":0}]
["Category of Offer ( Main Offer Only):",null,{"$f":"'Tender Cover Sheet'!C18","v":"Main Offer Only"}]
[]
["READ ME"]
[]
[1,"Read these notes BEFORE you commence input  to this workbook. Changes may not be made to this workbook. No columns may be removed, edited, added or changed on this workbook."]
[2,"Only The Main Offer shall be accepted. No alternative offers are accepted. There must be a separate Excel and PDF file for the main offer."]
[3,"Main offer is = The pricing schedule may not be changed or altered. Tenderer(s) to populate all required information on the Tender cover sheet and also populate as stipulated in (5.1.1 Pricing and 5.1.2 CPA Formulae). "]
[4,"NOTE:  ALL CALCULATIONS ARE THE RESPONSIBILITY OF THE TENDERER, AND MUST BE CHECKED THOROUGHLY.  ANY DISCREPANCY FOUND IN THE CALCULATIONS IN THIS WORKBOOK MUST BE BROUGHT TO THE ATTENTION OF ESKOM, THROUGH THE DESIGNATED BUYER!"]
[]
[]
[5,"This workbook contains the following sheets:"]
[null,"Read Me","This sheet provides an overview to the Tenderer of the content and role of the sheets making up the Price Schedule.  It will not form part of the tender or contract.The contract will be awarded to a single supplier for this price list.This contract is an \"as and when\" required contract. The units herein are estimates only and are non-committal."]
[null,"Tender Cover Sheet","This is the cover sheet for Worksheets 5.1.0 to 5.1.2 and provides the total tendered price which is mandatory be completed.  It is also the source of the package name, tenderer name etc. for the other worksheets.  It will  form part of the tender or contract. Worksheets Tender Cover Sheet, 5.1.1 Pricing and 5.1.2 CPA Formulae are compulsory tender returnables as they are loaded onto the Eskom Tender Bulletin and they may not be changed or altered."]
[null,"5.1.0 Preamble","This sheet provides general guidelines for this section."]
[null,"5.1.1 Pricing","This is the main data entry sheet for the Tenderer to complete. The Tenderer takes responsibility for ensuring correct inputs. Tenderers are to populate their pricing information as stipulated in the pricing schedule. The pricing schedule may not be changed or altered. Tenderer(s) to populate all required information on the Tender cover sheet as stipulated in  (5.1.1 Pricing ) and  (5.1.2 CPA Formulae). "]
[null,"5.1.2 CPA Formulae","This sheet must be completed by the Tenderer for the proposed contract price adjustment (CPA) formulae, (where applicable ) and will be carried forward to worksheet (5.1.1 Pricing). Details of the CPA Formulae to be determined in accordance with the CPA conditions with reference to the NOTES. If the CPA Formulae are not inputted, in worksheet 5.1.2 CPA formulae, the tendered prices will be deemed \"Fixed and Firm\". If the CPA formulae is inputted in worksheet (5.1.2 CPA Formulae) but is not reflected, using the drop downs, in worksheet (5.1.1 Pricing), the tendered prices will be deemed \"Fixed and Firm\". Rate of exchange (ROE) cannot be accepted by Eskom to form part of any CPA formulae."]
[]
[]
[6,"Conventions used in this workbook"]
[null,"The following conventions have been used in this workbook to facilitate its accurate use:"]
[null,null,"Only Light Green highlighted cells are to be inputted by the Tenderer."]
[null,null,"There will be no inputting in Grey highlighted cells."]

{"sheet":"Tender Cover Sheet","index":1,"n_rows":44,"n_cols":4,"rows_kept":44}
{"$rows_empty":9}
[null,"PRICING INFORMATION"]
[]
[null,"ENQUIRY No.",{"$f":"'Read Me'!C1","v":0}]
[]
[null,"NAME OF PACKAGE:",{"$f":"'Read Me'!C2","v":"General Facilities Maintenance contract for Limpopo Eskom Telecommunications Radio sites for a period of 3 years on an as and when required basis."}]
[]
[null,"TENDERER’S NAME:  "]
[]
[null,"CATEGORY OF OFFER (MAIN OFFER ONLY):",{"$f":"'[1]Read Me'!C4","v":"Main Offer Only"}]
[]
[null,"TENDERED PRICE:  IN ZAR",{"$f":"'[1]5.1.3 Summary'!F20","v":{"v":0,"d":"  0  RAND"}}]
[null,"(excluding VAT)"]
[]
[null,"RAND VALUE IN WORDS","[Price in Words]"]
[]
[]
[]
[]
[null,"TENDERED PRICE:  IN ZAR",{"$f":"'[1]5.1.3 Summary'!F22","v":{"v":0,"d":"  0  RAND"}}]
[null,"(including VAT)"]
[]
[null,"DATE :"]
[]
[]
[]
[null,"FULL NAMES OF SIGNATORY:"]
[]
[]
[]
[null,"DESIGNATION OF SIGNATORY:"]
[]
[]
[]
[null,"SIGNATURE :"]
[{"$nulls":3}," "]

{"sheet":"5.1.0 Preambles","index":2,"n_rows":18,"n_cols":3,"rows_kept":18,"merged":[[0,0,0,1],[1,0,1,1],[2,0,2,1],[3,0,3,1],[7,1,7,2],[8,1,8,2],[9,1,9,2],[10,1,10,2],[11,1,11,2],[12,1,12,2],[13,1,13,2],[14,1,14,2],[15,1,15,2],[16,1,16,2],[17,1,17,2]]}
["Enquiry No.",null,{"$f":"'Tender Cover Sheet'!C12","v":0}]
["Package Name:",null,{"$f":"'Tender Cover Sheet'!C14","v":"General Facilities Maintenance contract for Limpopo Eskom Telecommunications Radio sites for a period of 3 years on an as and when required basis."}]
["Tenderer's Name:",null,{"$f":"'Tender Cover Sheet'!C16","v":0}]
["Category of Offer:",null,{"$f":"'Tender Cover Sheet'!C18","v":"Main Offer Only"}]
[]
["5.1.0 PREAMBLE TO PRICE SCHEDULE "]
[]
[1,"The Price Schedule provides the basis of valuation, price adjustment (CPA) formulae and information for general contract progress monitoring. This contract is an \"as and when\" required contract.The contract will be awarded to a single supplier for this price list.The units herein are estimates only and are non-committal.  No alternative offers are accepted."]
[2,"This is the main data entry sheet for the Tenderer to complete. The Tenderer takes responsibility for ensuring correct inputs. Tenderers are to populate their pricing information as stipulated in the pricing schedule. The pricing schedule may not be changed or altered. Tenderer(s) to populate all required information on the Tender cover sheet and also populate  as stipulated in  (5.1.1 Pricing )  (5.1.2 CPA Formulae). CPA Formulae should represent cost breakdown of the goods/commodities/components/items being sourced."]
[3,"The Prices are the amounts stated in the price column of the Price Schedule.  Where an estimated quantity is stated for an item in the Price Schedule, the Price is calculated by multiplying the estimated quantity by the rate."]
[4,"If the Supplier has decided not to identify a particular item in the price schedule at the time of tender the cost to the Supplier of doing the work is assumed to be included in, or spread across, the other Prices and rates in the price schedule in order to fulfil the obligation to Provide the Goods and Services for the tendered total of the Prices.  "]
[5,"The total of the prices must include for all direct and indirect costs, overheads, profit on costs, risks, liabilities, obligations, etc. relative to the contract."]
[6,"The Tenderer must allow for all necessary costs to complete the pricing shedule as required in terms of the specifications, technical scope and conditions of contract whether expressly stated or not in the Price Schedules. The Tenderer must provide any breakdown of prices as may be required for specific items not detailed in the Price Schedule prior to or after contract award."]
[7,"The Prices quoted by the supplier should be exclusive and inclusive of VAT."]
[8," Please note, that the Tenderer is to input the VAT amount as no formulae has been provided for the VAT portion."]
[9,"All worksheets in this Pricing Schedule are to be submitted. Tenderers are not allowed to ommit a worksheet. If specifically worksheets, 5.1.1 or 5.1.2 are ommited, it will be deemed that CPA  are not applicable to this tender. Rate of exchange (ROE) cannot be accepted by Eskom to form part of any CPA formulae."]
[10,"Only Light Green highlighted cells are to be inputted by the Tenderer."]
[11,"There will be no inputting in Grey highlighted cells."]

{"sheet":"5.1.1 PRICING SCHEDULE","index":3,"n_rows":16,"n_cols":7,"rows_kept":16,"merged":[[0,0,0,1],[1,0,1,1],[2,0,2,1],[3,0,3,1],[15,0,15,4]]}
["Enquiry no.",null,{"$f":"'Tender Cover Sheet'!C12","v":0}]
["Package Name:",null,{"$f":"'Tender Cover Sheet'!C14","v":"General Facilities Maintenance contract for Limpopo Eskom Telecommunications Radio sites for a period of 3 years on an as and when required basis."}]
["Supplier Name:",null,{"$f":"'Tender Cover Sheet'!C16","v":0}]
["Category of Offer:",null,{"$f":"'Tender Cover Sheet'!C18","v":"Main Offer Only"}]
[]
["Pricing Schedule"]
[]
["Item no.","Description","UOM","Qty","Rate","Total","CPA Formula"]
[1,"Supervisor ","Hr",1,null,{"$f":"D9*E9","v":0}]
[2,"Artisan ","Hr",1,null,{"$f":"D10*E10","v":0}]
[3,"Assistant skilled ","Hr",1,null,0]
[4,"Assistant semi skilled ","Hr",1,null,0]
[5,"Material","% Mark-up",1,null,0]
[6,"Subsistence","per Night",1,null,0]
[7,"Travel Double Cab 4 X 4","Km",1,null,0]
["Total",{"$nulls":4},{"$f":"SUM(F9:F15)","v":0}]

{"sheet":"5.1.2 CPA FORMULA","index":4,"n_rows":148,"n_cols":67,"rows_kept":148,"merged":[[0,0,0,1],[1,0,1,1],[2,0,2,1],[3,0,3,1],[5,0,5,4],[8,2,8,3],[8,5,8,7],[9,2,9,4],[9,5,18,7],[10,2,10,4],[11,2,11,4],[12,2,12,4],[13,2,13,4],[14,2,14,4],[15,2,15,4],[16,2,16,4],[17,2,17,4],[18,2,18,4],[21,1,21,6],[22,1,22,6],[25,1,25,6],[26,1,26,6],[27,1,27,6],[28,1,28,6],[29,1,29,6],[30,1,30,6],[32,1,32,6],[33,1,33,6],[34,1,34,6],[35,1,35,6],[36,1,36,6],[40,1,40,6],[51,1,51,6],[62,1,62,6],[73,1,73,6],[84,1,84,6],[95,1,95,6],[106,1,106,6],[117,1,117,6],[128,1,128,6],[139,1,139,6]]}
["Enquiry No.",null,{"$f":"'Tender Cover Sheet'!C12","v":0}]
["Package Name:",null,{"$f":"'Tender Cover Sheet'!C14","v":"General Facilities Maintenance contract for Limpopo Eskom Telecommunications Radio sites for a period of 3 years on an as and when required basis."}]
["Tenderer's Name:",null,{"$f":"'Tender Cover Sheet'!C16","v":0}]
["Category of Offer:",null,{"$f":"'Tender Cover Sheet'!C18","v":"Main Offer Only"}]
[]
["5.1.2 CONTRACT PRICE ADJUSTMENT (CPA) FOR INFLATION"]
[]
["No.","Formula Code","Summary of the description of the Tenderer's Formulae"]
[1,"Fixed","Firm and Fixed ",null,null,"Prices are 100 % fixed and firm. CPA is not applicable. "]
[2,"A",{"$f":"B41","v":"Tenderer's description of Formula A"},null,null,"Type in the description of each formula in the tables below"]
[3,"B",{"$f":"B52","v":"Tenderer's description of Formula B"}]
[4,"C",{"$f":"B63","v":"Tenderer's description of Formula C"}]
[5,"D",{"$f":"B74","v":"Tenderer's description of Formula D"}]
[6,"E",{"$f":"B85","v":"Tenderer's description of Formula E"}]
[7,"F",{"$f":"B96","v":"Tenderer's description of Formula F"}]
[8,"G",{"$f":"B107","v":"Tenderer's description of Formula G"}]
[9,"H",{"$f":"B118","v":"Tenderer's description of Formula H"}]
[10,"I",{"$f":"B129","v":"Tenderer's description of Formula I"}]
[11,"J",{"$f":"B140","v":"Tenderer's description of Formula J"}]
[]
["SPECIFIC REQUIREMENTS"]
[{"v":1,"d":"1."},"Only Main Offer is to be submitted. Main offer tenderers are to fully comply with the requirements in the General Notes and CPA Formulae Notes below."]
[{"v":2,"d":"2."},"No ALTERNATIVE offers are accepted."]
[]
["GENERAL NOTES :"]
[1,"References to \"indices\" below mean \"cost indices or reference prices\"."]
[2,"Where 5 year historical information must be provided as instructed below, internet address references which are accessible to the general public may be submitted by the Tenderer instead, with the specific electronic route and web page reflecting the applicable data."]
[3,"The worksheet  CPA Formula in 5.1.2. has to be populated by the tenderer (columns B - J), unless the tenderer’s prices are fixed and firm for the duration of the contract. Each CPA formula must add up to a total of 100%.  All columns are to be populated. No inhouse CPA indices may be used. Tenderers are to provide all requested information.CPA Formulae should represent cost breakdown of the goods/commodities/components/items being sourced.\n"]
[4,"CPA Formulae Codes Column N 5.1.1 Pricing is to be populated by the tenderer by selecting the respective drop down codes CPA formula as  developed by Tenderer in 5.1.2 CPA formulae worksheet   (e.g. Formula A-J ) then  the tenderer must populate their respective CPA formula in  5.1.2 CPA Formulae Worksheet. Codes and descriptions must be selected by the tenderer and inserted into each row of activity. "]
[5,"Prices will be fixed for the first twelve (12) months after contract signing date and escalated on an annual basis based on the CPA formula agreed on with tenderer."]
[6,"The CPA escalation will be calculated as follows: latest index which is the latest available index at the end of each contractual year vs. the base index which is one month prior to tender closing date. "]
["CPA FORMULA NOTES :"]
[1,"Proportions/weightings in CPA Formulae: The fixed portion of each formula, not subject to CPA, must be at least 15% but Tenderers may submit higher fixed portion percentages.  The other constituent indices and their proportions in each formula must be realistic and relative to the applicable work. The fixed portion and other proportions must add up to 100%.   "]
[2,"Formulae must be linked to independent cost indices or other benchmarks (\"reference prices\") and must be clearly and completely defined. The source must be a recognised and independent statistical publishing organisation.  The Tenderers' in-house indices may not be used."]
[3,"Local Price CPA: Where local indices other than those published by SEIFSA or Statistics SA are specified, the Tenderer must submit 5 years' of month by month historical data for such indices.  The Tenderer must ensure that indices are published and recommended by the source thereof as applicable to the work involved and that they are still in force/use and applicable at the date of submission of the tender. "]
[4,"CPA Base Date: The CPA base date for calculating price movements will be the Base Date, Month before Tender closes. For indices or reference prices published as at certain dates, and where such a date is not the Base Date, the latest date for which it is published before the Base Date will be considered as the Base Date index or reference price.  In instances where the figure or value is not as at the Base Date or considered as the Base Date Index or reference price as explained herein, the date, figure or value as well as the reason for the deviation must be clearly separately stated and must be realistic for purposes of CPA.  ",{"$nulls":10}," "]
[5,"Base Date Index :   The base index or reference price must be inserted in the appropriate column."]
[" "," "]
[]
[]
["Formula A","Tenderer's description of Formula A"]
["Index Ref.","Proportions / weightings for each index (refer note 1)","Description / scope of index (e.g. Labour)","Title/Definition : Linked to the index, e.g., Table C3, All hourly paid employees.  Must be completely defined","Source/publisher of index (e.g. SEIFSA, StatsSA, LME)","Base Month for CPA if not Base Date as defined (refer note 4)","Base Date Index (refer note 5)","Historical data provided (Yes or No- provide http link)","yy/mm/dd","yy/mm/dd","yy/mm/dd","yy/mm/dd","yy/mm/dd","yy/mm/dd","yy/mm/dd","yy/mm/dd","yy/mm/dd","yy/mm/dd","yy/mm/dd","yy/mm/dd","yy/mm/dd","yy/mm/dd","yy/mm/dd","yy/mm/dd","yy/mm/dd","yy/mm/dd","yy/mm/dd","yy/mm/dd","yy/mm/dd","yy/mm/dd","yy/mm/dd","yy/mm/dd","yy/mm/dd","yy/mm/dd","yy/mm/dd","yy/mm/dd","yy/mm/dd","yy/mm/dd","yy/mm/dd","yy/mm/dd","yy/mm/dd","yy/mm/dd","yy/mm/dd","yy/mm/dd","yy/mm/dd","yy/mm/dd","yy/mm/dd","yy/mm/dd","yy/mm/dd","yy/mm/dd","yy/mm/dd","yy/mm/dd","yy/mm/dd","yy/mm/dd","yy/mm/dd","yy/mm/dd","yy/mm/dd","yy/mm/dd","yy/mm/dd","yy/mm/dd","yy/mm/dd","yy/mm/dd","yy/mm/dd","yy/mm/dd","yy/mm/dd","yy/mm/dd","yy/mm/dd"]
["A1"]
["A2"]
["A3"]
["A4"," "]
["A5"]
["A6",{"v":0.15,"d":"15%"},"Fixed 15% minimum not subject to CPA (0.150)"]
[null,{"$f":"SUM(B43:B48)","v":{"v":0.15,"d":"15%"}},"Total","This Total is to add up to 100% for each CPA formula submitted by tenderer"]
[]
[]
["Formula B","Tenderer's description of Formula B"]
["Index Ref.","Proportions / weightings for each index (refer note 1)","Description / scope of index (e.g. Labour)","Title/Definition : Linked to the index, e.g., Table C3, All hourly paid employees.  Must be completely defined","Source/publisher of index (e.g. SEIFSA, StatsSA, LME)","Base Month for CPA if not Base Date as defined (refer note 4)","Base Date Index (refer note 5)","Historical data provided (Yes or No- provide Internet address)","yy/mm/dd","yy/mm/dd","yy/mm/dd","yy/mm/dd","yy/mm/dd","yy/mm/dd","yy/mm/dd","yy/mm/dd","yy/mm/dd","yy/mm/dd","yy/mm/dd","yy/mm/dd","yy/mm/dd","yy/mm/dd","yy/mm/dd","yy/mm/dd","yy/mm/dd","yy/mm/dd","yy/mm/dd","yy/mm/dd","yy/mm/dd","yy/mm/dd","yy/mm/dd","yy/mm/dd","yy/mm/dd","yy/mm/dd","yy/mm/dd","yy/mm/dd","yy/mm/dd","yy/mm/dd","yy/mm/dd","yy/mm/dd","yy/mm/dd","yy/mm/dd","yy/mm/dd","yy/mm/dd","yy/mm/dd","yy/mm/dd","yy/mm/dd","yy/mm/dd","yy/mm/dd","yy/mm/dd","yy/mm/dd","yy/mm/dd","yy/mm/dd","yy/mm/dd","yy/mm/dd","yy/mm/dd","yy/mm/dd","yy/mm/dd","yy/mm/dd","yy/mm/dd","yy/mm/dd","yy/mm/dd","yy/mm/dd","yy/mm/dd","yy/mm/dd","yy/mm/dd","yy/mm/dd"]
["B1"]
["B2"," "]
["B3"]
["B4"," "]
["B5"," "]
["B6",{"v":0.15,"d":"15%"},"Fixed 15% minimum not subject to CPA (0.150)"]
[null,{"$f":"SUM(B54:B59)","v":{"v":0.15,"d":"15%"}},"Total","This Total is to add up to 100% for each CPA formula submitted by tenderer"]
[]
[]
["Formula C","Tenderer's description of Formula C"]
["Index Ref.","Proportions / weightings for each index (refer note 1)","Description / scope of index (e.g. Labour)","Title/Definition : Linked to the index, e.g., Table C3, All hourly paid employees.  Must be completely defined","Source/publisher of index (e.g. SEIFSA, StatsSA, LME)","Base Month for CPA if not Base Date as defined (refer note 4)","Base Date Index (refer note 5)","Historical data provided (Yes or No- provide Internet address)","yy/mm/dd","yy/mm/dd","yy/mm/dd","yy/mm/dd","yy/mm/dd","yy/mm/dd","yy/mm/dd","yy/mm/dd","yy/mm/dd","yy/mm/dd","yy/mm/dd","yy/mm/dd","yy/mm/dd","yy/mm/dd","yy/mm/dd","yy/mm/dd","yy/mm/dd","yy/mm/dd","yy/mm/dd","yy/mm/dd","yy/mm/dd","yy/mm/dd","yy/mm/dd","yy/mm/dd","yy/mm/dd","yy/mm/dd","yy/mm/dd","yy/mm/dd","yy/mm/dd","yy/mm/dd","yy/mm/dd","yy/mm/dd","yy/mm/dd","yy/mm/dd","yy/mm/dd","yy/mm/dd","yy/mm/dd","yy/mm/dd","yy/mm/dd","yy/mm/dd","yy/mm/dd","yy/mm/dd","yy/mm/dd","yy/mm/dd","yy/mm/dd","yy/mm/dd","yy/mm/dd","yy/mm/dd","yy/mm/dd","yy/mm/dd","yy/mm/dd","yy/mm/dd","yy/mm/dd","yy/mm/dd","yy/mm/dd","yy/mm/dd","yy/mm/dd","yy/mm/dd","yy/mm/dd"]
["C1",{"$nulls":4}," "," "," "]
["C2"," "]
["C3"]
["C4"," "]
["C5"," "]
["C6",{"v":0.15,"d":"15%"},"Fixed 15% minimum not subject to CPA (0.150)"]
[null,{"$f":"SUM(B65:B70)","v":{"v":0.15,"d":"15%"}},"Total","This Total is to add up to 100% for each CPA formula submitted by tenderer"]
[]
[]
["Formula D","Tenderer's description of Formula D"]
["Index Ref.","Proportions / weightings for each index (refer note 1)","Description / scope of index (e.g. Labour)","Title/Definition : Linked to the index, e.g., Table C3, All hourly paid employees.  Must be completely defined","Source/publisher of index (e.g. SEIFSA, StatsSA, LME)","Base Month for CPA if not Base Date as defined (refer note 4)","Base Date Index (refer note 5)","Historical data provided (Yes or No- provide Internet address)","yy/mm/dd","yy/mm/dd","yy/mm/dd","yy/mm/dd","yy/mm/dd","yy/mm/dd","yy/mm/dd","yy/mm/dd","yy/mm/dd","yy/mm/dd","yy/mm/dd","yy/mm/dd","yy/mm/dd","yy/mm/dd","yy/mm/dd","yy/mm/dd","yy/mm/dd","yy/mm/dd","yy/mm/dd","yy/mm/dd","yy/mm/dd","yy/mm/dd","yy/mm/dd","yy/mm/dd","yy/mm/dd","yy/mm/dd","yy/mm/dd","yy/mm/dd","yy/mm/dd","yy/mm/dd","yy/mm/dd","yy/mm/dd","yy/mm/dd","yy/mm/dd","yy/mm/dd","yy/mm/dd","yy/mm/dd","yy/mm/dd","yy/mm/dd","yy/mm/dd","yy/mm/dd","yy/mm/dd","yy/mm/dd","yy/mm/dd","yy/mm/dd","yy/mm/dd","yy/mm/dd","yy/mm/dd","yy/mm/dd","yy/mm/dd","yy/mm/dd","yy/mm/dd","yy/mm/dd","yy/mm/dd","yy/mm/dd","yy/mm/dd","yy/mm/dd","yy/mm/dd","yy/mm/dd"]
["D1"," "]
["D2"," "]
["D3"]
["D4"," "]
["D5"," "]
["D6",{"v":0.15,"d":"15%"},"Fixed 15% minimum not subject to CPA (0.150)"]
[null,{"$f":"SUM(B76:B81)","v":{"v":0.15,"d":"15%"}},"Total","This Total is to add up to 100% for each CPA formula submitted by tenderer"]
[]
[]
["Formula E","Tenderer's description of Formula E"]
["Index Ref.","Proportions / weightings for each index (refer note 1)","Description / scope of index (e.g. Labour)","Title/Definition : Linked to the index, e.g., Table C3, All hourly paid employees.  Must be completely defined","Source/publisher of index (e.g. SEIFSA, StatsSA, LME)","Base Month for CPA if not Base Date as defined (refer note 4)","Base Date Index (refer note 5)","Historical data provided (Yes or No- provide Internet address)","yy/mm/dd","yy/mm/dd","yy/mm/dd","yy/mm/dd","yy/mm/dd","yy/mm/dd","yy/mm/dd","yy/mm/dd","yy/mm/dd","yy/mm/dd","yy/mm/dd","yy/mm/dd","yy/mm/dd","yy/mm/dd","yy/mm/dd","yy/mm/dd","yy/mm/dd","yy/mm/dd","yy/mm/dd","yy/mm/dd","yy/mm/dd","yy/mm/dd","yy/mm/dd","yy/mm/dd","yy/mm/dd","yy/mm/dd","yy/mm/dd","yy/mm/dd","yy/mm/dd","yy/mm/dd","yy/mm/dd","yy/mm/dd","yy/mm/dd","yy/mm/dd","yy/mm/dd","yy/mm/dd","yy/mm/dd","yy/mm/dd","yy/mm/dd","yy/mm/dd","yy/mm/dd","yy/mm/dd","yy/mm/dd","yy/mm/dd","yy/mm/dd","yy/mm/dd","yy/mm/dd","yy/mm/dd","yy/mm/dd","yy/mm/dd","yy/mm/dd","yy/mm/dd","yy/mm/dd","yy/mm/dd","yy/mm/dd","yy/mm/dd","yy/mm/dd","yy/mm/dd","yy/mm/dd"]
["E1"," "]
["E2"," "]
["E3"]
["E4"," "]
["E5"," "]
["E6",{"v":0.15,"d":"15%"},"Fixed 15% minimum not subject to CPA (0.150)"]
[null,{"$f":"SUM(B87:B92)","v":{"v":0.15,"d":"15%"}},"Total","This Total is to add up to 100% for each CPA formula submitted by tenderer"]
[]
[]
["Formula F","Tenderer's description of Formula F"]
["Index Ref.","Proportions / weightings for each index (refer note 1)","Description / scope of index (e.g. Labour)","Title/Definition : Linked to the index, e.g., Table C3, All hourly paid employees.  Must be completely defined","Source/publisher of index (e.g. SEIFSA, StatsSA, LME)","Base Month for CPA if not Base Date as defined (refer note 4)","Base Date Index (refer note 5)","Historical data provided (Yes or No- provide Internet address)","yy/mm/dd","yy/mm/dd","yy/mm/dd","yy/mm/dd","yy/mm/dd","yy/mm/dd","yy/mm/dd","yy/mm/dd","yy/mm/dd","yy/mm/dd","yy/mm/dd","yy/mm/dd","yy/mm/dd","yy/mm/dd","yy/mm/dd","yy/mm/dd","yy/mm/dd","yy/mm/dd","yy/mm/dd","yy/mm/dd","yy/mm/dd","yy/mm/dd","yy/mm/dd","yy/mm/dd","yy/mm/dd","yy/mm/dd","yy/mm/dd","yy/mm/dd","yy/mm/dd","yy/mm/dd","yy/mm/dd","yy/mm/dd","yy/mm/dd","yy/mm/dd","yy/mm/dd","yy/mm/dd","yy/mm/dd","yy/mm/dd","yy/mm/dd","yy/mm/dd","yy/mm/dd","yy/mm/dd","yy/mm/dd","yy/mm/dd","yy/mm/dd","yy/mm/dd","yy/mm/dd","yy/mm/dd","yy/mm/dd","yy/mm/dd","yy/mm/dd","yy/mm/dd","yy/mm/dd","yy/mm/dd","yy/mm/dd","yy/mm/dd","yy/mm/dd","yy/mm/dd","yy/mm/dd"]
["F1"]
["F2"]
["F3"]
["F4"]
["F5"]
["F6",{"v":0.15,"d":"15%"},"Fixed 15% minimum not subject to CPA (0.150)"]
[null,{"$f":"SUM(B98:B103)","v":{"v":0.15,"d":"15%"}},"Total","This Total is to add up to 100% for each CPA formula submitted by tenderer"]
[]
[]
["Formula G","Tenderer's description of Formula G"]
["Index Ref.","Proportions / weightings for each index (refer note 1)","Description / scope of index (e.g. Labour)","Title/Definition : Linked to the index, e.g., Table C3, All hourly paid employees.  Must be completely defined","Source/publisher of index (e.g. SEIFSA, StatsSA, LME)","Base Month for CPA if not Base Date as defined (refer note 4)","Base Date Index (refer note 5)","Historical data provided (Yes or No- provide Internet address)","yy/mm/dd","yy/mm/dd","yy/mm/dd","yy/mm/dd","yy/mm/dd","yy/mm/dd","yy/mm/dd","yy/mm/dd","yy/mm/dd","yy/mm/dd","yy/mm/dd","yy/mm/dd","yy/mm/dd","yy/mm/dd","yy/mm/dd","yy/mm/dd","yy/mm/dd","yy/mm/dd","yy/mm/dd","yy/mm/dd","yy/mm/dd","yy/mm/dd","yy/mm/dd","yy/mm/dd","yy/mm/dd","yy/mm/dd","yy/mm/dd","yy/mm/dd","yy/mm/dd","yy/mm/dd","yy/mm/dd","yy/mm/dd","yy/mm/dd","yy/mm/dd","yy/mm/dd","yy/mm/dd","yy/mm/dd","yy/mm/dd","yy/mm/dd","yy/mm/dd","yy/mm/dd","yy/mm/dd","yy/mm/dd","yy/mm/dd","yy/mm/dd","yy/mm/dd","yy/mm/dd","yy/mm/dd","yy/mm/dd","yy/mm/dd","yy/mm/dd","yy/mm/dd","yy/mm/dd","yy/mm/dd","yy/mm/dd","yy/mm/dd","yy/mm/dd","yy/mm/dd","yy/mm/dd"]
["G1"," "]
["G2"," "]
["G3"," "]
["G4"]
["G5"," "]
["G6",{"v":0.15,"d":"15%"},"Fixed 15% minimum not subject to CPA (0.150)"]
[null,{"$f":"SUM(B109:B114)","v":{"v":0.15,"d":"15%"}},"Total","This Total is to add up to 100% for each CPA formula submitted by tenderer"]
[]
[]
["Formula H","Tenderer's description of Formula H"]
["Index Ref.","Proportions / weightings for each index (refer note 1)","Description / scope of index (e.g. Labour)","Title/Definition : Linked to the index, e.g., Table C3, All hourly paid employees.  Must be completely defined","Source/publisher of index (e.g. SEIFSA, StatsSA, LME)","Base Month for CPA if not Base Date as defined (refer note 4)","Base Date Index (refer note 5)","Historical data provided (Yes or No- provide Internet address)","yy/mm/dd","yy/mm/dd","yy/mm/dd","yy/mm/dd","yy/mm/dd","yy/mm/dd","yy/mm/dd","yy/mm/dd","yy/mm/dd","yy/mm/dd","yy/mm/dd","yy/mm/dd","yy/mm/dd","yy/mm/dd","yy/mm/dd","yy/mm/dd","yy/mm/dd","yy/mm/dd","yy/mm/dd","yy/mm/dd","yy/mm/dd","yy/mm/dd","yy/mm/dd","yy/mm/dd","yy/mm/dd","yy/mm/dd","yy/mm/dd","yy/mm/dd","yy/mm/dd","yy/mm/dd","yy/mm/dd","yy/mm/dd","yy/mm/dd","yy/mm/dd","yy/mm/dd","yy/mm/dd","yy/mm/dd","yy/mm/dd","yy/mm/dd","yy/mm/dd","yy/mm/dd","yy/mm/dd","yy/mm/dd","yy/mm/dd","yy/mm/dd","yy/mm/dd","yy/mm/dd","yy/mm/dd","yy/mm/dd","yy/mm/dd","yy/mm/dd","yy/mm/dd","yy/mm/dd","yy/mm/dd","yy/mm/dd","yy/mm/dd","yy/mm/dd","yy/mm/dd","yy/mm/dd"]
["H1"," "]
["H2"," "]
["H3"," "]
["H4"," "]
["H5"," "]
["H6",{"v":0.15,"d":"15%"},"Fixed 15% minimum not subject to CPA (0.150)"]
[null,{"$f":"SUM(B120:B125)","v":{"v":0.15,"d":"15%"}},"Total","This Total is to add up to 100% for each CPA formula submitted by tenderer"]
[]
[]
["Formula I","Tenderer's description of Formula I"]
["Index Ref.","Proportions / weightings for each index (refer note 1)","Description / scope of index (e.g. Labour)","Title/Definition : Linked to the index, e.g., Table C3, All hourly paid employees.  Must be completely defined","Source/publisher of index (e.g. SEIFSA, StatsSA, LME)","Base Month for CPA if not Base Date as defined (refer note 4)","Base Date Index (refer note 5)","Historical data provided (Yes or No- provide Internet address)","yy/mm/dd","yy/mm/dd","yy/mm/dd","yy/mm/dd","yy/mm/dd","yy/mm/dd","yy/mm/dd","yy/mm/dd","yy/mm/dd","yy/mm/dd","yy/mm/dd","yy/mm/dd","yy/mm/dd","yy/mm/dd","yy/mm/dd","yy/mm/dd","yy/mm/dd","yy/mm/dd","yy/mm/dd","yy/mm/dd","yy/mm/dd","yy/mm/dd","yy/mm/dd","yy/mm/dd","yy/mm/dd","yy/mm/dd","yy/mm/dd","yy/mm/dd","yy/mm/dd","yy/mm/dd","yy/mm/dd","yy/mm/dd","yy/mm/dd","yy/mm/dd","yy/mm/dd","yy/mm/dd","yy/mm/dd","yy/mm/dd","yy/mm/dd","yy/mm/dd","yy/mm/dd","yy/mm/dd","yy/mm/dd","yy/mm/dd","yy/mm/dd","yy/mm/dd","yy/mm/dd","yy/mm/dd","yy/mm/dd","yy/mm/dd","yy/mm/dd","yy/mm/dd","yy/mm/dd","yy/mm/dd","yy/mm/dd","yy/mm/dd","yy/mm/dd","yy/mm/dd","yy/mm/dd"]
["I1"," "]
["I2"," "]
["I3"," "]
["I4"]
["I5"," "]
["I6",{"v":0.15,"d":"15%"},"Fixed 15% minimum not subject to CPA (0.150)"]
[null,{"$f":"SUM(B131:B136)","v":{"v":0.15,"d":"15%"}},"Total","This Total is to add up to 100% for each CPA formula submitted by tenderer"]
[]
[]
["Formula J","Tenderer's description of Formula J"]
["Index Ref.","Proportions / weightings for each index (refer note 1)","Description / scope of index (e.g. Labour)","Title/Definition : Linked to the index, e.g., Table C3, All hourly paid employees.  Must be completely defined","Source/publisher of index (e.g. SEIFSA, StatsSA, LME)","Base Month for CPA if not Base Date as defined (refer note 4)","Base Date Index (refer note 5)","Historical data provided (Yes or No- provide Internet address)","yy/mm/dd","yy/mm/dd","yy/mm/dd","yy/mm/dd","yy/mm/dd","yy/mm/dd","yy/mm/dd","yy/mm/dd","yy/mm/dd","yy/mm/dd","yy/mm/dd","yy/mm/dd","yy/mm/dd","yy/mm/dd","yy/mm/dd","yy/mm/dd","yy/mm/dd","yy/mm/dd","yy/mm/dd","yy/mm/dd","yy/mm/dd","yy/mm/dd","yy/mm/dd","yy/mm/dd","yy/mm/dd","yy/mm/dd","yy/mm/dd","yy/mm/dd","yy/mm/dd","yy/mm/dd","yy/mm/dd","yy/mm/dd","yy/mm/dd","yy/mm/dd","yy/mm/dd","yy/mm/dd","yy/mm/dd","yy/mm/dd","yy/mm/dd","yy/mm/dd","yy/mm/dd","yy/mm/dd","yy/mm/dd","yy/mm/dd","yy/mm/dd","yy/mm/dd","yy/mm/dd","yy/mm/dd","yy/mm/dd","yy/mm/dd","yy/mm/dd","yy/mm/dd","yy/mm/dd","yy/mm/dd","yy/mm/dd","yy/mm/dd","yy/mm/dd","yy/mm/dd","yy/mm/dd"]
["J1"," "]
["J2"]
["J3"," "]
["J4"," "]
["J5"," "]
["J6",{"v":0.15,"d":"15%"},"Fixed 15% minimum not subject to CPA (0.150)"]
[null,{"$f":"SUM(B142:B147)","v":{"v":0.15,"d":"15%"}},"Total","This Total is to add up to 100% for each CPA formula submitted by tenderer"]